Cogmind - Beta 14 @@@ ROGUE MODE // 2025.03.04 @ 00:58:35 Player: SovietPaperclip Result: Self-destructed Performance ------------- Evolutions (2) 1000 Regions Visited (7) 1400 Robots Destroyed (58) 290 Value Destroyed (1369) 1369 Prototype IDs (2) 40 Alien Tech Used (0) 0 Bonus (300) 300 TOTAL SCORE: 4399 Bonus ------- Aligned with FarCom 300 Cogmind --------- Core Integrity 525/550 Matter 227/300 Energy 280/280 System Corruption 0% Temperature Cool (0) Movement Rolling (120) Ox2 Location -8/Materials Parts ------- > --- POWER (1) -------- Heavy Ion Engine > --- PROPULSION (4) --- Armored Wheel Armored Wheel Armored Wheel > --- UTILITY (4) ------ Huge Storage Unit Advanced Visual Processing Unit Light Armor Plating Hardlight Generator > --- WEAPON (2) ------- Heavy Assault Rifle Minigun > --- INVENTORY (25) --- Makeshift Power Source Light Treads Light Treads Cryofiber Web Improved Terrain Scanner Modified TNC Thief Drone Bay (3/3) Army-in-a-Box Ion Cannon Ion Cannon Assault Cannon Rocket Launcher Rocket Launcher Deploy-a-Sentry Deploy-a-Sentry Deploy-a-Sentry Peak State ------------ > --- POWER ------------ Heavy Ion Engine > --- PROPULSION ------- Armored Wheel Armored Wheel Armored Wheel Armored Wheel > --- UTILITY ---------- Huge Storage Unit Advanced Visual Processing Unit Advanced Targeting Computer Light Armor Plating > --- WEAPON ----------- Heavy Assault Rifle Minigun > --- INVENTORY -------- Makeshift Power Source Light Treads Light Treads Improved Terrain Scanner Modified TNC Thief Drone Bay Army-in-a-Box Light EM Pulse Cannon Ion Cannon Ion Cannon Light Assault Rifle Assault Cannon Rocket Launcher Rocket Launcher Deploy-a-Sentry Deploy-a-Sentry Deploy-a-Sentry [Rating: 35] Favorites ----------- Power Heavy Ion Engine Engine Heavy Ion Engine Propulsion Armored Wheel Treads Light Treads Wheel Armored Wheel Utility Improved Targeting Computer Device Hardlight Generator Storage High-capacity Storage Unit Processor Improved Targeting Computer Protection Light Armor Plating Weapon Light Cannon Energy Cannon Light EM Pulse Cannon Ballistic Gun Assault Rifle Ballistic Cannon Light Cannon Launcher Rocket Launcher Special Weapon Mining Laser Build | -11 -10 -10 -9 -9 -9 -8 -8 ------- Run | Yrd Mat Min Mat Min Exi Min Mat Slots Evolved 4 | . . . 2 . . . 2 Power . | . . . . . . . . Propulsion 2 | . . . 1 . . . 1 Utility 2 | . . . 1 . . . 1 Weapon . | . . . . . . . . Parts Attached 43 | 6 13 1 8 2 . 5 8 Power 3 | 1 . . 2 . . . . Engine 3 | 1 . . 2 . . . . Core . | . . . . . . . . Reactor . | . . . . . . . . Propulsion 8 | 2 4 . 1 . . . 1 Treads 2 | 2 . . . . . . . Leg . | . . . . . . . . Wheel 6 | . 4 . 1 . . . 1 Hover . | . . . . . . . . Flight . | . . . . . . . . Utility 10 | 1 2 . 1 . . 1 5 Device 2 | . . . . . . . 2 Storage 3 | 1 1 . . . . . 1 Processor 3 | . 1 . . . . 1 1 Hackware . | . . . . . . . . Protection 2 | . . . 1 . . . 1 Artifact . | . . . . . . . . Weapon 22 | 2 7 1 4 2 . 4 2 Energy Gun . | . . . . . . . . Energy Cannon 1 | . . . 1 . . . . Ballistic Gun 9 | 2 . . 1 1 . 3 2 Ballistic Cannon 6 | . 5 . 1 . . . . Launcher 5 | . 1 1 1 1 . 1 . Special Weapon 1 | . 1 . . . . . . Impact Weapon . | . . . . . . . . Slashing Weapon . | . . . . . . . . Piercing Weapon . | . . . . . . . . Special Melee Weapon . | . . . . . . . . Unidentified Prototypes 2 | . . . 1 . . . 1 Parts Lost 5 | . . 1 2 . . 1 1 Power 1 | . . 1 . . . . . Propulsion 1 | . . . . . . . 1 Utility 1 | . . . . . . 1 . Weapon 2 | . . . 2 . . . . Highest Loss Streak 2 | . . 1 2 . . 1 1 To Critical Strikes . | . . . . . . . . Average Slot Usage (%) 95 | . 96 99 95 100 100 88 90 Engine 11 | . 14 13 11 11 11 11 9 Treads 1 | . 6 . . . . . . Wheel 29 | . 21 28 33 33 33 33 31 Storage 11 | . 14 14 11 11 11 11 9 Processor 12 | . 10 14 11 11 11 11 15 Protection 4 | . . . 9 11 11 . 5 Energy Cannon 2 | . . . 1 11 11 . . Ballistic Gun 5 | . 2 . 3 . . 19 18 Ballistic Cannon 11 | . 25 27 11 . . . . Launcher 3 | . . . 3 10 11 1 . Peak Build Rating 35 | 6 12 12 19 19 27 27 35 Average Rating 18 | 4 9 11 16 18 22 24 32 On Entrance 14 | . 6 11 12 19 19 27 25 Naked Turns . | . . . . . . . . Heaviest Build 102 | 12 49 49 59 59 59 54 102 Greatest Support 48 | 40 40 24 36 36 36 36 48 Greatest Overweight (x) 2 | . 2 2 1 1 1 1 2 Average Overweight (x) 1 | . . 1 1 1 1 1 1 Largest Inventory Capacity 25 | 8 20 20 20 20 20 20 25 Average Capacity 18 | 6 11 20 20 20 20 20 24 Most Carried 22 | 1 8 11 10 9 19 20 22 Average Carried 11 | . 6 9 9 9 13 19 20 Final Capacity 25 | 8 20 20 20 20 20 20 25 Final Carried 21 | 1 8 11 9 9 19 20 21 Class Distribution -------------------- 100% | Mutant Dominant Class ---------------- Mutant | -10/Materials Mutant | -10/Mines Mutant | -9/Materials Mutant | -9/Mines Mutant | -9/Exiles Mutant | -8/Mines Mutant | -8/Materials Resources | -11 -10 -10 -9 -9 -9 -8 -8 ----------- Run | Yrd Mat Min Mat Min Exi Min Mat Matter Collected 1164 | 194 380 42 129 99 . 90 230 Remotely . | . . . . . . . . Salvage Created 1336 | . 323 51 274 192 . 84 412 Parts 103 | . 32 10 20 10 . 10 21 Haulers Intercepted 3 | . 2 . . . . . 1 Recyclers Shooed . | . . . . . . . . Parts Field Recycled . | . . . . . . . . Retrieved Matter . | . . . . . . . . Parts Self-Destructed . | . . . . . . . . Prevented . | . . . . . . . . Kills | -11 -10 -10 -9 -9 -9 -8 -8 ------- Run | Yrd Mat Min Mat Min Exi Min Mat Combat Hostiles Destroyed 49 | . 14 6 7 6 . 7 9 Guns 12 | . . . 1 . . 2 9 Cannons 15 | . 4 3 3 2 . 3 . AOE 22 | . 10 3 3 4 . 2 . Classes Destroyed 9 | . 5 1 2 . . . 1 Worker 2 | . 1 . 1 . . . . Tunneler 1 | . . 1 . . . . . Hauler 3 | . 2 . . . . . 1 Operator 1 | . . . 1 . . . . Watcher 2 | . 1 . . . . . 1 Swarmer 26 | . 9 6 . . . 7 4 Grunt 19 | . 5 . 5 6 . . 3 Sentry 3 | . . . 2 . . . 1 Hunter 1 | . . . . . . . 1 Best Kill Streak 11 | . 11 4 4 3 . 4 5 Combat Bots Only 10 | . 10 3 3 3 . 4 4 Max Kills in Single Turn 4 | . 4 4 3 2 . 2 1 Gunslinging . | . . . . . . . . Exploded 4 | . 4 3 2 2 . 2 . Melee . | . . . . . . . . Uniques/NPCs Destroyed . | . . . . . . . . Combat | -11 -10 -10 -9 -9 -9 -8 -8 -------- Run | Yrd Mat Min Mat Min Exi Min Mat Hostile Shots Fired 147 | . 43 9 22 2 . 26 45 Missed 40 | . 13 1 6 1 . 7 12 Damage Taken 1258 | . 336 65 236 18 . 187 416 Core 156 | . 75 8 42 . . 6 25 Absorbed by Shields 24 | . . . . . . . 24 Core Remaining (%) 84 | 100 . 66 . . . 88 . Volleys Fired 95 | . 21 4 17 5 . 14 34 Largest 2 | . 2 2 2 1 . 2 2 Hottest 76 | . 70 70 76 56 . 76 48 Shots Fired 161 | . 36 7 28 5 . 17 68 Gun 84 | . 2 . 7 . . 7 68 Cannon 62 | . 28 6 19 2 . 7 . Launcher 15 | . 6 1 2 3 . 3 . Special . | . . . . . . . . Kinetic 134 | . 30 6 23 . . 7 68 Thermal . | . . . . . . . . Explosive 15 | . 6 1 2 3 . 3 . Electromagnetic 12 | . . . 3 2 . 7 . Robot Hit Streak 12 | . 9 4 10 9 . 12 12 Robot Miss Streak 6 | . 5 6 3 . . 4 2 Penetration Max . | . . . . . . . . Secondary Targets 3 | . . . . . . . 3 Max Gunslinging Chain 1 | . . . . . . . 1 Shots Hit Robots 112 | . 19 4 21 3 . 10 55 Core Hits 80 | . 21 6 13 10 . 7 23 Critical Kills . | . . . . . . . . Critical Parts Destroyed . | . . . . . . . . Critical Strikes 2 | . 1 . 1 . . . . Blast 2 | . 1 . 1 . . . . Melee Attacks . | . . . . . . . . Impact . | . . . . . . . . Slashing . | . . . . . . . . Piercing . | . . . . . . . . Sneak Attacks . | . . . . . . . . Combat Hostiles . | . . . . . . . . Follow-up Attacks . | . . . . . . . . Damage Inflicted 3090 | . 860 228 575 343 . 314 770 Guns 902 | . 10 . 91 . . 31 770 Cannons 755 | . 321 67 221 50 . 96 . Explosions 1433 | . 529 161 263 293 . 187 . Melee . | . . . . . . . . Ramming . | . . . . . . . . Kinetic 1467 | . 331 67 268 . . 31 770 Thermal . | . . . . . . . . Explosive 1433 | . 529 161 263 293 . 187 . Electromagnetic 190 | . . . 44 50 . 96 . Impact . | . . . . . . . . Slashing . | . . . . . . . . Piercing . | . . . . . . . . Highest Corruption . | . . . . . . . . Average Corruption . | . . . . . . . . Corruption Purged . | . . . . . . . . Corruption Blocked . | . . . . . . . . Overload Shots . | . . . . . . . . Overflow Damage 35 | . 21 12 . . . 2 . Projectiles 12 | . . 12 . . . . . Explosions 23 | . 21 . . . . 2 . Melee . | . . . . . . . . Knockbacks . | . . . . . . . . Impact . | . . . . . . . . Kinetic . | . . . . . . . . Secondary . | . . . . . . . . Self-Inflicted Damage 82 | . 36 . 15 . . 31 . Shots 3 | . 1 . 1 . . 1 . Rammed . | . . . . . . . . Targets Rammed . | . . . . . . . . Kicked . | . . . . . . . . Crushed . | . . . . . . . . Highest Temperature 96 | . 96 27 72 24 . 72 40 Average Temperature 21 | . 30 14 25 12 . 39 7 Received Heat Transfer 317 | . 54 . 87 9 . . 167 Siege Activations . | . . . . . . . . Robots Corrupted . | . . . . . . . . Combat Hostiles . | . . . . . . . . Parts Fried . | . . . . . . . . Impact Corruptions . | . . . . . . . . Robots Melted . | . . . . . . . . Combat Hostiles . | . . . . . . . . Parts Melted . | . . . . . . . . Heat Transferred . | . . . . . . . . Parts Sabotaged . | . . . . . . . . Parts Stolen . | . . . . . . . . Parts Stripped . | . . . . . . . . Power Chain Reactions . | . . . . . . . . Alert | -11 -10 -10 -9 -9 -9 -8 -8 ------- Run | Yrd Mat Min Mat Min Exi Min Mat Peak Influence 417 | . 417 262 287 308 . 169 347 Initial 162 | . . 162 52 111 . . 65 Average 174 | . 125 230 120 258 . 152 209 Maximum Alert Level 2 | . 2 1 1 1 . . 1 Low Security (%) 60 | 100 78 16 96 32 . 100 35 Level 1 34 | . . 83 3 67 . . 64 Level 2 5 | . 20 . . . . . . Level 3 . | . . . . . . . . Level 4 . | . . . . . . . . Level 5 . | . . . . . . . . High Security . | . . . . . . . . Max Security . | . . . . . . . . Squads Dispatched 3 | . 2 . . . . . 1 Investigation 2 | . 1 . . . . . 1 Extermination . | . . . . . . . . Reinforcement 1 | . 1 . . . . . . Assault . | . . . . . . . . Garrison . | . . . . . . . . Intercept . | . . . . . . . . Searches Triggered . | . . . . . . . . Construction Impeded . | . . . . . . . . Haulers Reinforced . | . . . . . . . . Active Scanning Responses . | . . . . . . . . Cargo Convoy Interrupts . | . . . . . . . . Stealth | -11 -10 -10 -9 -9 -9 -8 -8 --------- Run | Yrd Mat Min Mat Min Exi Min Mat Distress Signals 2 | . . . 2 . . . . Communications Jammed . | . . . . . . . . Distress Signals . | . . . . . . . . Times Spotted 63 | . 19 5 11 6 . 7 15 Peak Tracking Total 9 | . 9 3 5 3 . 4 5 Tactical Retreats . | . . . . . . . . Traps | -11 -10 -10 -9 -9 -9 -8 -8 ------- Run | Yrd Mat Min Mat Min Exi Min Mat Traps Triggered 4 | . 4 . . . . . . Indirectly . | . . . . . . . . Trap Hack Attempts . | . . . . . . . . Triggered . | . . . . . . . . Disarmed . | . . . . . . . . Reprogrammed . | . . . . . . . . Reused . | . . . . . . . . Traps Extracted . | . . . . . . . . Installed . | . . . . . . . . Triggered . | . . . . . . . . Machines | -11 -10 -10 -9 -9 -9 -8 -8 ---------- Run | Yrd Mat Min Mat Min Exi Min Mat Machines Disabled 11 | . 5 2 . 3 . . 1 Max in Single Turn 2 | . 2 1 . 2 . . 1 Machines Repaired . | . . . . . . . . Machines Dismantled . | . . . . . . . . Machines Sabotaged . | . . . . . . . . Overloaded Fab Kills . | . . . . . . . . Hacking | -11 -10 -10 -9 -9 -9 -8 -8 --------- Run | Yrd Mat Min Mat Min Exi Min Mat Machines Accessed 6 | . 1 1 2 . 1 . 1 Terminals 4 | . 1 . 2 . . . 1 Fabricators . | . . . . . . . . Repair Stations . | . . . . . . . . Recycling Units . | . . . . . . . . Scanalyzers . | . . . . . . . . Garrison Access . | . . . . . . . . Total Hacks 10 | . 3 1 2 . 1 . 3 Successful 7 | . 1 1 2 . 1 . 2 Failed 3 | . 2 . . . . . 1 Catastrophic 1 | . . . . . . . 1 Database Lockouts . | . . . . . . . . Manual 1 | . . . . . 1 . . Terminals 8 | . 3 . 2 . . . 3 Fabricators . | . . . . . . . . Repair Stations . | . . . . . . . . Recycling Units . | . . . . . . . . Scanalyzers . | . . . . . . . . Garrison Access . | . . . . . . . . Terminal Hacks 7 | . 1 1 2 . 1 . 2 Record 1 | . . . . . 1 . . Robot Analysis 1 | . . . 1 . . . . Open Door 1 | . . 1 . . . . . Branch Access Points 1 | . . . . . . . 1 Locate Traps 1 | . . . . . . . 1 Registered Components 1 | . 1 . . . . . . Zone Layout 1 | . . . 1 . . . . Fabricator Hacks . | . . . . . . . . Repair Station Hacks . | . . . . . . . . Recycling Unit Hacks . | . . . . . . . . Scanalyzer . | . . . . . . . . Garrison Access Hacks . | . . . . . . . . Unauthorized Hacks . | . . . . . . . . Terminals . | . . . . . . . . Fabricators . | . . . . . . . . Repair Stations . | . . . . . . . . Recycling Units . | . . . . . . . . Scanalyzers . | . . . . . . . . Garrison Access . | . . . . . . . . Data Cores Recovered 1 | . . . 1 . . . . Used . | . . . . . . . . Hacking Detections 2 | . 1 . . . . . 1 Full Trace Events 1 | . . . . . . . 1 Feedback Events . | . . . . . . . . Feedback Blocked . | . . . . . . . . Robot Schematics Acquired . | . . . . . . . . Robots Built . | . . . . . . . . Authchips . | . . . . . . . . Time . | . . . . . . . . Total Robot Build Rating . | . . . . . . . . Part Schematics Acquired . | . . . . . . . . Parts Built . | . . . . . . . . Authchips . | . . . . . . . . Time . | . . . . . . . . Total Part Build Rating . | . . . . . . . . Parts Repaired . | . . . . . . . . Time . | . . . . . . . . Parts Recycled . | . . . . . . . . Recycled Matter . | . . . . . . . . Retrieved Matter . | . . . . . . . . Retrieved Components . | . . . . . . . . Parts Scanalyzed . | . . . . . . . . Part Schematics Acquired . | . . . . . . . . Parts Damaged . | . . . . . . . . Bothacking | -11 -10 -10 -9 -9 -9 -8 -8 ------------ Run | Yrd Mat Min Mat Min Exi Min Mat Used RIF Installer . | . . . . . . . . Robots Hacked . | . . . . . . . . Non-combat . | . . . . . . . . Combat . | . . . . . . . . Robot Hacks Applied . | . . . . . . . . Relay Couplers Released . | . . . . . . . . Fabnet Peak Effective % . | . . . . . . . . Robots Rewired . | . . . . . . . . Allies Hacked . | . . . . . . . . Hacks Repelled . | . . . . . . . . Allies | -11 -10 -10 -9 -9 -9 -8 -8 -------- Run | Yrd Mat Min Mat Min Exi Min Mat Total Allies 2 | . . . . 2 . . . Largest Group 2 | . . . . 2 1 . . Highest-Rated Group 42 | . . . . 42 31 . . Highest-Rated Ally 31 | . . . . 31 31 . . Total Orders . | . . . . . . . . Ally Attacks . | . . . . . . . . Total Damage . | . . . . . . . . Kills . | . . . . . . . . Allies Corrupted . | . . . . . . . . Allies Melted . | . . . . . . . . Intel | -11 -10 -10 -9 -9 -9 -8 -8 ------- Run | Yrd Mat Min Mat Min Exi Min Mat Robot Analysis Total 1 | . . . 1 . . . . Derelict Logs Recovered 3 | . . 2 . 1 . . . Drone Launches . | . . . . . . . . Drone Recoveries . | . . . . . . . . Exploration | -11 -10 -10 -9 -9 -9 -8 -8 ------------- Run | Yrd Mat Min Mat Min Exi Min Mat Turns Passed 2941 | 82 651 481 286 338 330 370 403 Spaces Moved 2133 | 47 470 384 176 282 280 296 198 Core 2 | 2 . . . . . . . Treads 123 | 45 78 . . . . . . Legs . | . . . . . . . . Wheels 2008 | . 392 384 176 282 280 296 198 Hover . | . . . . . . . . Flight . | . . . . . . . . Fastest Speed 50 | 50 90 105 105 105 105 105 105 Average Speed 110 | 155 110 119 105 105 105 105 113 Slowest Speed 160 | 160 160 120 105 105 105 105 120 Overloaded Moves . | . . . . . . . . Propulsion Burnouts . | . . . . . . . . Robots Hopped . | . . . . . . . . Cave-ins Triggered . | . . . . . . . . Exploration Rate (%) 52 | 3 72 82 24 74 61 72 28 Regions Visited 7 Branch Regions 4 Pre-discovered Areas 2 | . . 1 . . 1 . . Known Exits Taken 1 | . . . 1 . . . . Unknown Exits Taken 6 | 1 1 1 . 1 1 1 . Scrap Searched 2 | . . 1 . 1 . . . Spaces Dug 33 | . 17 9 . 7 . . . Terrain Destroyed 99 | . 49 9 8 13 . 20 . Melee . | . . . . . . . . Projectile . | . . . . . . . . AOE 99 | . 49 9 8 13 . 20 . Terrain Rammed . | . . . . . . . . Walls Destroyed . | . . . . . . . . Machines Disabled . | . . . . . . . . Actions | -11 -10 -10 -9 -9 -9 -8 -8 --------- Run | Yrd Mat Min Mat Min Exi Min Mat Total 2549 | 53 563 399 247 317 316 337 317 Wait 236 | . 42 8 44 29 32 19 62 Move 2126 | 46 469 383 175 281 279 295 198 Hop . | . . . . . . . . Pick Up 34 | 1 13 3 2 . 5 2 8 Fast Attach 13 | 6 2 . 2 . . 1 2 Attach 10 | . 3 . 3 . . . 4 Detach 1 | . . . . . . . 1 Swap 20 | . 8 1 3 2 . 4 2 Drop 14 | . 5 . 1 . . 2 6 Fire 95 | . 21 4 17 5 . 14 34 Melee . | . . . . . . . . Ram . | . . . . . . . . Kick . | . . . . . . . . Crush . | . . . . . . . . Escape Stasis . | . . . . . . . . Rewire . | . . . . . . . . Trap . | . . . . . . . . Miscellaneous . | . . . . . . . . Route ------- -11/Scrapyard -10/Materials (discovered 3 exits: *Mat x2 / *Min) -10/Mines (discovered 2 exits: *Mat x2) -9/Materials (discovered 2 exits: *Min x2) -9/Mines (discovered 2 exits: *Mat / *Exi) -9/Exiles -8/Mines -8/Materials (discovered 1 exit: [*Fac]) History --------- Turn | Location | Event 12 | -11/Scrapyard | Discovered new exit (range 14) 83 | -11/Scrapyard | Entered Materials 313 | -10/Materials | Build established: Mutant 416 | -10/Materials | Discovered new exit (range 16) 531 | -10/Materials | Discovered new exit (range 13) 616 | -10/Materials | Discovered new exit (range 13) 619 | -10/Materials | Destroyed 10 combat bots 734 | -10/Materials | Entered Mines 857 | -10/Mines | Discovered new exit (range 8) 864 | -10/Mines | Received a Rocket Launcher from a helpful Derelict 1038 | -10/Mines | Learned location of Zion (-6) 1061 | -10/Mines | Found the Drone Emporium 1065 | -10/Mines | Found Prototype Device 1189 | -10/Mines | Discovered new exit (range 13) 1215 | -10/Mines | Entered Materials 1215 | -9/Materials | Evolved 2 slots: Propulsion x1, Utility x1 1216 | -9/Materials | Identified exit to Mines 1501 | -9/Materials | Entered Mines 1583 | -9/Mines | Met a Derelict bent on vengeance 1617 | -9/Mines | Discovered new exit (range 8) 1811 | -9/Mines | Deemed a non-threat by the Exiles lab entrance 1812 | -9/Mines | Discovered new exit (range 5) 1839 | -9/Mines | Entered Exiles 1839 | -9/Exiles | Accompanied by 1 ally 1865 | -9/Exiles | Met 8R-AWN 1869 | -9/Exiles | Led the pair of lost Derelicts to a safe place 1883 | -9/Exiles | Met EX-HEX 1916 | -9/Exiles | Met EX-BIN 1954 | -9/Exiles | Met EX-DEC 1993 | -9/Exiles | Aligned with FarCom system 1994 | -9/Exiles | Given EX-Vault access code 2018 | -9/Exiles | Opened EX-Vault 2023 | -9/Exiles | Found Prototype Device 2027 | -9/Exiles | Found Prototype Processor 2029 | -9/Exiles | Found Deploy-a-Sentry 2031 | -9/Exiles | Found Deploy-a-Sentry 2034 | -9/Exiles | Found Deploy-a-Sentry 2057 | -9/Exiles | Warned to stay clear of 0b10 Research branches 2066 | -9/Exiles | Exiles lab attacked by MAIN.C 2124 | -9/Exiles | Discovered new exit (range 14) 2169 | -9/Exiles | Stole three prototypes: Deploy-a-Sentry, Army-in-a-Box, Modified TNC 2169 | -9/Exiles | Entered Mines 2524 | -8/Mines | Discovered new exit (range 10) 2539 | -8/Mines | Entered Materials 2539 | -8/Materials | Evolved 2 slots: Propulsion x1, Utility x1 2551 | -8/Materials | Identified Thief Drone Bay 2868 | -8/Materials | Discovered new exit (range 20) 2942 | -8/Materials | Self-destructed Last Messages --------------- 02817_ K-01 Serf collects debris. 02817_ Acquired 49 matter. 02821_ K-01 Serf cleans the Matter Pump. 02828_ K-01 Serf collects debris. 02832_ K-01 Serf cleans the Matter Pump. 02839_ K-01 Serf collects debris. 02868_ EXIT=FOUND 02881_ Acquired Hardlight Generator. 02882_ Discarded Adv. Targeting Computer. 02917_ Connecting with Terminal... 02917_ Current location identified: Materials >>Traps(Locate) Found 1 trap in 1 array: 1x Alarm Trap Map updated. >>Access(Branch) No branch access points found. 02917_ ALERT: Suspicious activity at Terminal M004. Dispatching Investigation squad. 02928_ G-47 Trooper destroyed. Map ----- +----------------------------------------------------+ | ???????????????????????????????????????????? | | ???????????????????????????????????????????? | | ???????????????????????????????????????????? | | ???????????????????????????????????????????? | | ???????????????????????????????????????????? | | ???????????????????????????????????????????? | | ???????????????????????????????????????????? | | ???????????????????????????????????????????? | | ??????????????????????????^????????????????? | | ???????????????????????????????????????????? | | ???????????????????????????????????????????? | | ?? ????????????????w???????????????????????? | | ?? ????????????????????????????????????????? | | ?# ????????????????????????????????????????? | | ?# ????????????????????????????????????????? | | ?# ###?????????????????????##??????????????? | | ?# ????????????????????? +??????????????? | | ?# #???????????????????? #+?????????????? | | ?# #???????????????????? ??????????????? | | ?# #?##########????????? ??????????????? | | ?# #?# #????????? ???????????????? | | ?# #?# """ #????????? ???????????????? | | ?# #?# """ #????#####g##??????????????? | | ?# #?# """ #????# #??????????????? | | ?# #?# #????# #??????????????? | | ?# #?# """ [#????# " @ #g?????????????? | | ## #?# """ #????# T #??????????????? | | # #?# """ #????# " #?#????????????? | | # #?# #????# [=# #????????????? | | *# #######+#############+## #????????????? | | # %* #????????????? | | + < #????????????? | | # #????????????? | | ######## #######+######+####????????????? | | #??????# #????! ?? ??????????????? | | #??????# #???# #""" #????????????? | | ######### #???# """ #""" #????????????? | | #???#= """ #""" #????????????? | | #???# """ # | #????????????? | | #???# o #! #????????????? | | #####+#######???####+##########????????????? | | ???????????????????????????????????????????? | | ???????????????????????????????????????????? | | ???????????????????????????????????????????? | | ???????????????????????????????????????????? | | ???????????????????????????????????????????? | | ???????????????????????????????????????????? | | ???????????????????????????????????????????? | | ???????????????????????????????????????????? | | ???????????????????????????????????????????? | +----------------------------------------------------+ Best States ------------- Heat Dissipation 31 Energy Generation 14 Energy Capacity 280 Matter Stores 300 Matter Capacity 300 Sight Range 20 Terrain Scan Density 10 Armor Coverage 150 Evasion (%) 42 Targeting Accuracy 8 Recoil Reduction 2 Item Schematics ----------------- None Robot Schematics ------------------ None Fabricated ------------ Nothing Alien Tech Used ----------------- None Achievements -------------- None Challenges ------------ None Game ------ Seed EnhancedGrenadeJammer Manual? 0 Play Time 00:23:33 Cumulative 136.5 hours Start 2025.03.04 @ 00:31:21 End 2025.03.04 @ 00:58:35 Sessions 5 Manual Loads 0 Difficulty Rogue Special Mode None Game No. 189 Rogue 189 Adventurer 0 Explorer 0 Win Type - Total 1 Types 1/0/0/0/0/0/0/0/0 Lore% 48 Gallery% 53 Achievement% 51 Wizard Run 0 Options --------- Layout 1 ASCII 0 Keyboard 0 Movement Mouse Keybinds 0 Fullscreen 1 Font 32/SmallcapsGlow Map View 77x35 Zoom Use 0% Tactical HUD 1 Map Filters NONE Filters NONE Steam 1 RUN: c48c4e2e-85c7-4e46-b0e6-a3567a780a24